[Event "Baku Open 2024"]
[Site "Baku"]
[Date "2024.07.03"]
[Round "5.28"]
[White "Vantika Agrawal"]
[Black "Javadov, Habil"]
[Result "1-0"]
[ECO "E06"]
[WhiteElo "2390"]
[BlackElo "2195"]
[Annotator "TA"]
[PlyCount "53"]
[EventDate "2024.06.29"]
[EventType "swiss"]
[EventCountry "AZE"]
[SourceTitle "playchess.com"]
[Source "ChessBase"]
[SourceQuality "1"]
[TimeControl "5400+30"]

{[%evp 18,53,37,40,55,62,80,36,43,44,59,38,65,62,75,68,130,118,254,287,274,276,288,203,195,194,198,203,294,221,332,349,371,362,358,354,687,-1193]} 1. d4 {[%emt 0:00:09]} d5 {[%emt 0:00:17]} 2. c4 {[%emt 0:00:04]} e6 {[%emt 0:00:05]} 3. Nf3 {[%emt 0:00:04][%cal Bg1f3,Bf3e5,Be5c4][%mdl 32]} Nf6 {[%emt 0:00:05]} 4. g3 {[%emt 0:00:04]} Be7 {[%emt 0:00:06]} 5. Bg2 {[%emt 0:00:04]} O-O {[%emt 0:00:06]} 6. O-O {[%emt 0:00:05]} c6 {[%emt 0:00:04]} 7. Nc3 {[%emt 0:00:12]} b6 {[%emt 0:01:12][%cal Bb7b6,Bb6b5][%mdl 32]} 8. Ne5 {[%emt 0:00:43]} Bb7 {[%emt 0:00:29]} 9. e4 {[%emt 0:01:00]} dxc4 {[%emt 0:07:02]} 10. Nxc4 {[%emt 0:01:21]} b5 {[%emt 0:03:52]} 11. Ne3 {[%emt 0:02:11]} Nbd7 {[%emt 0:11:31]} 12. Qc2 {[%emt 0:16:56]} Rc8 {[%emt 0:03:20] White is slightly better.} 13. Rd1 {[%emt 0:03:19]} Qb6 {[%emt 0:01:36]} 14. b3 {[%emt 0:01:26]} Rfd8 {[%emt 0:02:56]} 15. Bb2 {[%emt 0:03:14]} Nf8 {[%emt 0:06:22]} 16. Rac1 {[%emt 0:03:20]} c5 {[%emt 0:06:44]} (16... Rxd4 $2 17. Rxd4 h5 (17... Qxd4 $2 18. Ncd5 $18) 18. Rd3 $18) ({Black should try} 16... a6 $14) 17. d5 $16 {[%emt 0:01:29]} exd5 {[%emt 0:09:47] Loses the game.} (17... Rb8 $16 18. h4 N8d7) 18. e5 $18 {[%emt 0:04:10]} ({Less strong is} 18. Nexd5 Nxd5 19. Nxd5 Bxd5 20. exd5 Bg5 $14) (18. exd5 $6 Ng6 19. a4 a6 $18) 18... Ne8 {[%emt 0:09:38]} 19. Ncxd5 {[%emt 0:01:22]} ({Weaker is} 19. Bxd5 Ne6 $16) 19... Qe6 {[%emt 0:02:14]} 20. Nxe7+ {[%emt 0:15:02]} Qxe7 {[%emt 0:00:21]} 21. Rxd8 {[%emt 0:00:35]} Rxd8 {[%emt 0:00:47]} 22. Qxc5 {[%emt 0:00:46]} Qd7 {[%emt 0:04:39]} (22... Qxc5 $142 23. Rxc5 Bxg2) 23. Rd1 {[%emt 0:09:57]} Qxd1+ {[%emt 0:02:42]} (23... Qc8 $142 24. Qxc8 (24. Qxa7 Rxd1+ 25. Nxd1 Bxg2 $16) 24... Rxd1+ 25. Nxd1 Bxc8) 24. Nxd1 {[%emt 0:00:04]} Rxd1+ {[%emt 0:00:01]} 25. Bf1 {[%emt 0:00:06][%cal Ob2a3] aiming for Ba3!} a6 {[%emt 0:03:05]} 26. f4 {[%emt 0:04:58]} Ne6 $2 {[%emt 0:01:27] [#]} (26... g6 27. Qc2 Rd7) 27. Qd4 $4 {[%emt 0:31:19][%mdl 40960] Weighted Error Value: White=0.18 (very precise) /Black=0.65.  Missed win:     	White=1     	---        Mistake:       	---       	Black=5      Inaccurate:     	White=1     	Black=1      OK:         	White=6     	Black=4      Best:        	White=2     	---       . Loss on time!?} 1-0

[Event "Baku Open 2024"]
[Site "Baku"]
[Date "2024.07.03"]
[Round "5.29"]
[White "Serikbay, Assel"]
[Black "Kamalidenova, Meruert"]
[Result "0-1"]
[ECO "E73"]
[WhiteElo "2217"]
[BlackElo "2360"]
[Annotator "TA"]
[PlyCount "80"]
[EventDate "2024.06.29"]
[EventType "swiss"]
[EventCountry "AZE"]
[SourceTitle "playchess.com"]
[Source "ChessBase"]
[SourceQuality "1"]
[TimeControl "5400+30"]

{[%evp 12,80,49,40,61,63,46,27,30,19,31,-94,-93,-158,-128,-185,-167,-214,-205,-203,-247,-284,-279,-286,-282,-293,-279,-386,-390,-388,-366,-372,-142,-147,-150,-138,-131,-130,-1,-3,-14,-126,-89,-87,-92,-93,-99,-141,-138,-147,-144,-152,-154,-350,-323,-352,-335,-520,-506,-590,-577,-597,-608,-4686,-3550,-29980,-29981,-29988,-29989,-29989,-29990]} 1. d4 {[%emt 0:00:04]} Nf6 {[%emt 0:00:13]} 2. c4 {[%emt 0:00:10]} g6 {[%emt 0:00:09]} 3. Nc3 {[%emt 0:00:12]} Bg7 {[%emt 0:00:09]} 4. e4 {[%emt 0:00:14]} d6 {[%emt 0:00:07]} 5. Be2 {[%emt 0:00:29]} O-O {[%emt 0:00:24]} 6. Be3 {[%emt 0:00:19]} c5 {[%emt 0:01:05]} 7. d5 {[%emt 0:00:48]} Qb6 {[%emt 0:00:30]} 8. Qd2 {[%emt 0:02:41]} e6 {[%emt 0:00:34]} 9. f3 {[%emt 0:10:32]} exd5 {[%emt 0:03:02] White has an edge.} 10. cxd5 {[%emt 0:00:13]} a6 {[%emt 0:02:31] [#]} 11. e5 {[%emt 0:24:30]} dxe5 $17 {[%emt 0:03:56]} 12. Na4 {[%emt 0:00:09]} (12. Ne4 $142) 12... Qd8 {[%emt 0:03:38]} 13. Bxc5 {[%emt 0:01:15]} (13. Rd1 $17) 13... Re8 $1 $19 {[%emt 0:11:05][%cal Ob8d7]} 14. Nb6 {[%emt 0:05:55] [#]} (14. Bf2 {might work better.} Nbd7 (14... Qxd5 $2 15. Nb6 $18) (14... Nxd5 15. Rd1 $14) 15. Nc3) 14... Nbd7 $1 {[%emt 0:00:19]} 15. Nxa8 {[%emt 0:03:02]} Nxc5 {[%emt 0:00:42]} 16. Rc1 {[%emt 0:02:57] [#]} Bf8 {[%emt 0:03:45][%cal Oe5e4] Threatens to win with ...e4!} (16... Qxd5 $2 17. Qxd5 Nxd5 18. Rxc5 $18) 17. b4 {[%emt 0:11:02] [#]} Nce4 {[%emt 0:20:21][%mdl 512]} 18. fxe4 {[%emt 0:03:40]} Nxe4 {[%emt 0:00:05]} 19. Qb2 {[%emt 0:11:51]} Qh4+ {[%emt 0:02:40]} (19... Qxd5 $2 20. Nc7 Qd8 21. Nxe8 $18) 20. g3 {[%emt 0:00:05]} Nxg3 {[%emt 0:00:19]} 21. Nf3 {[%emt 0:03:14]} Qxb4+ {[%emt 0:13:13]} (21... Nxh1+ $2 22. Nxh4 Be7 23. Nf3 $18 (23. Qxe5 Bxh4+ 24. Kd2 Rxe5 $17)) (21... Bxb4+ $19 {is more deadly.} 22. Kd1 Qe4 23. hxg3 Qxd5+ 24. Nd2 Qxh1+ 25. Kc2 Qh2 26. Qxb4 Qxe2) 22. Qxb4 $17 {[%emt 0:00:04]} Bxb4+ {[%emt 0:00:04]} 23. Kf2 {[%emt 0:00:07]} Nxh1+ {[%emt 0:00:04]} 24. Kg2 {[%emt 0:03:29] [#]} Ba5 {[%emt 0:09:53] Repels Nb6} 25. Nc7 $1 $11 {[%emt 0:02:36]} Rd8 {[%emt 0:00:13][%cal Oe5e4] White should prevent ...e4!} 26. Kxh1 {[%emt 0:09:57]} (26. Nxe5 $1 $11 Bf5 27. Kxh1) 26... Bg4 {[%emt 0:01:39]} 27. Kg2 {[%emt 0:01:03]} Kf8 {[%emt 0:03:36]} 28. h3 {[%emt 0:02:36]} Bh5 {[%emt 0:05:03] A strong pair of Bishops.} 29. Bd3 {[%emt 0:00:50]} Bxf3+ {[%emt 0:01:49]} 30. Kxf3 {[%emt 0:00:02]} Ke7 {[%emt 0:00:12]} 31. Ke4 {[%emt 0:01:14]} Kd6 {[%emt 0:00:10]} 32. Nxa6 $2 {[%emt 0:00:24] Now White is beyond hope.} (32. Ne6 $17 fxe6 33. dxe6) 32... f5+ $19 {[%emt 0:00:19]} (32... bxa6 33. Rc6+ Ke7 34. Kxe5 $11) 33. Ke3 {[%emt 0:00:19]} e4 {[%emt 0:03:02]} ({Don't play} 33... bxa6 34. Rc6+ Kxd5 35. Rxa6 $19) 34. Bb5 {[%emt 0:00:52]} ({Reject} 34. Nc5 Bb6 (34... exd3 $2 {is the wrong capture.} 35. Nxb7+ Kxd5 36. Rc5+ Ke6 37. Rxa5 $18) 35. Bc2 Bxc5+ (35... Kxc5 $2 36. Bb3+ Kd6+ 37. Kf4 $19) 36. Ke2 Rc8 $19 (36... Kxd5 $2 37. Bb3+ Kc6 38. Rf1 $19)) (34. Rb1 {keeps fighting.} exd3 35. Nb4) 34... bxa6 {[%emt 0:00:46][%mdl 4096] Endgame. KRB-KRB} 35. Rc6+ {[%emt 0:00:04]} Kxd5 {[%emt 0:00:39]} 36. Rxa6 {[%emt 0:00:02]} Bb4 {[%emt 0:00:39] ...Ke5 would now be deadly.} 37. Ba4 {[%emt 0:01:22]} Ke5 {[%emt 0:00:35] ( -> ...Rd2)} 38. Bb3 {[%emt 0:00:12]} f4+ {[%emt 0:00:06] Black mates.} 39. Ke2 {[%emt 0:00:03]} f3+ {[%emt 0:00:20]} 40. Kf1 {[%emt 0:00:41]} e3 {[%emt 0:00:19] Weighted Error Value: White=0.73/Black=0.15 (very precise) .  Loses game:     	White=1     	---        Missed win:     	---       	Black=1      Mistake:       	White=6     	Black=1      Inaccurate:     	White=3     	---        OK:         	White=7     	Black=16     Best:        	White=3     	Black=4      Strong:       	White=1     	Black=2} 0-1

[Event "Baku Open 2024"]
[Site "Baku"]
[Date "2024.07.03"]
[Round "5.30"]
[White "Amangeldy, Ernur"]
[Black "Putrenko, Kirill"]
[Result "1-0"]
[ECO "E11"]
[WhiteElo "2223"]
[BlackElo "2349"]
[Annotator "TA"]
[PlyCount "83"]
[EventDate "2024.06.29"]
[EventType "swiss"]
[EventCountry "AZE"]
[SourceTitle "playchess.com"]
[Source "ChessBase"]
[SourceQuality "1"]
[TimeControl "5400+30"]

{[%evp 16,83,4,6,21,1,14,18,4,9,27,0,0,0,0,-10,0,-4,0,0,0,10,5,0,0,0,17,9,77,68,63,59,100,91,102,84,100,104,123,120,112,117,104,90,158,139,152,151,318,307,310,260,429,429,450,444,447,425,430,457,708,685,706,718,702,673,1232,1208,1390,1372]} 1. d4 {[%emt 0:00:18]} Nf6 {[%emt 0:00:09]} 2. c4 {[%emt 0:01:10]} e6 {[%emt 0:00:18]} 3. Nf3 {[%emt 0:01:21]} d5 {[%emt 0:00:16]} 4. g3 {[%emt 0:00:37]} Bb4+ {[%emt 0:00:13]} 5. Bd2 {[%emt 0:00:14]} Be7 {[%emt 0:00:08]} 6. Bg2 {[%emt 0:00:06]} O-O {[%emt 0:00:22]} 7. O-O {[%emt 0:00:06]} c6 {[%emt 0:00:24][%cal Bc7c6,Bc6c5][%mdl 32]} 8. Qc2 {[%emt 0:00:10]} Nbd7 {[%emt 0:00:07]} 9. Rd1 {[%emt 0:00:39]} a5 {[%emt 0:00:13]} 10. b3 {[%emt 0:04:38]} b6 {[%emt 0:01:14]} 11. Bc3 {[%emt 0:10:50]} Bb7 {[%emt 0:01:24] The position is equal.} 12. Nbd2 {[%emt 0:00:56]} c5 {[%emt 0:01:01]} 13. a4 {[%emt 0:03:23]} Qc7 {[%emt 0:05:38]} 14. Qb2 {[%emt 0:01:32]} Rac8 {[%emt 0:03:46]} 15. Rac1 {[%emt 0:07:03]} Rfd8 {[%emt 0:03:26]} 16. dxc5 {[%emt 0:11:52]} bxc5 {[%emt 0:03:16] [#] And now ...d4 would win.} 17. cxd5 {[%emt 0:01:45]} exd5 {[%emt 0:00:22]} 18. e3 {[%emt 0:00:59]} Qb6 {[%emt 0:06:20]} 19. Ne5 {[%emt 0:02:39][%cal Bf3e5,Be5d3,Bd3f4][%mdl 32]} Nf8 {[%emt 0:03:10]} 20. Qb1 {[%emt 0:03:40]} Ra8 {[%emt 0:04:10]} 21. e4 {[%emt 0:08:10]} d4 {[%emt 0:09:32]} (21... Qc7 $11 22. exd5 Nxd5) 22. Ndc4 $16 {[%emt 0:00:50][%cal Bd2c4,Bc4a3,Ba3b5][%mdl 32]} Qc7 {[%emt 0:00:31]} 23. Bd2 {[%emt 0:01:56]} N6d7 {[%emt 0:15:45]} 24. Nd3 {[%emt 0:01:04] White is much more active.} Ra6 {[%emt 0:05:11]} 25. Qc2 {[%emt 0:04:13]} Rda8 {[%emt 0:01:40]} 26. Nf4 {[%emt 0:00:40]} Ne5 {[%emt 0:08:46]} 27. Na3 {[%emt 0:03:51]} (27. Nd5 Bxd5 28. exd5 Nxc4 29. bxc4 (29. Qxc4 Bd6 $14) 29... Bd6) 27... Qd8 {[%emt 0:04:43]} 28. Nd5 {[%emt 0:01:12]} Nfd7 {[%emt 0:02:48]} 29. Nb5 {[%emt 0:01:05]} Bxd5 {[%emt 0:08:45]} (29... g5 $142) 30. exd5 {[%emt 0:00:15][%cal Be4d5,Bd5d6][%mdl 32]} Bf8 {[%emt 0:00:25]} 31. Bf4 {[%emt 0:00:53]} Ng6 $2 {[%emt 0:07:55] [#] This costs Black the game.} (31... Qf6 $16 {was worth a try.} 32. Bxe5 Qxe5) 32. Bc7 $18 {[%emt 0:02:49]} Qf6 {[%emt 0:00:11]} 33. Qe2 {[%emt 0:03:35] Threatens to win with d6.} Qf5 $2 {[%emt 0:03:04]} (33... Qe7 {is a better defense.} 34. Qxe7 Nxe7) 34. d6 {[%emt 0:01:35] White is clearly winning.} Nge5 {[%emt 0:00:30]} 35. f4 {[%emt 0:03:40]} Ng4 {[%emt 0:01:02]} 36. Be4 {[%emt 0:01:34]} Qh5 {[%emt 0:00:31]} 37. Bf3 {[%emt 0:00:13]} f5 {[%emt 0:00:37]} (37... Ndf6 $142 38. Qg2 (38. d7 g6 $18) 38... Re8) 38. Qe6+ {[%emt 0:01:56]} Qf7 {[%emt 0:00:38] Black is weak on the light squares} 39. Bd5 {[%emt 0:00:11]} Nh6 {[%emt 0:00:30]} 40. Bc4 {[%emt 0:00:18] A strong pair of Bishops.} Nf6 {[%emt 0:00:57]} 41. Qe2 {[%emt 0:00:14]} Nd5 {[%emt 0:00:29]} 42. Qf3 {[%emt 0:00:11] Weighted Error Value: White=0.06 (flawless) /Black=0.29 (precise) .  Loses game:     	---       	Black=1      Mistake:       	---       	Black=4      Inaccurate:     	White=1     	Black=1      OK:         	White=13    	Black=11     Best:        	White=2     	---} 1-0

[Event "Baku Open 2024"]
[Site "Baku"]
[Date "2024.07.03"]
[Round "5.31"]
[White "Mammadova, Gulnar"]
[Black "Gurbanov, Ismayil"]
[Result "1/2-1/2"]
[ECO "C43"]
[WhiteElo "2348"]
[BlackElo "2163"]
[Annotator "TA"]
[PlyCount "164"]
[EventDate "2024.06.29"]
[EventType "swiss"]
[EventCountry "AZE"]
[SourceTitle "playchess.com"]
[Source "ChessBase"]
[SourceQuality "1"]
[TimeControl "5400+30"]

{[%evp 65,164,9,25,14,20,0,0,0,0,0,0,-2,0,-11,-10,-27,0,0,0,-8,-8,-291,-284,-284,-284,-278,-270,-240,-70,-70,-72,-70,-70,-70,-70,-69,-69,-273,-217,-547,-547,-865,-541,-29986,-485,-430,-68,-68,-68,-68,-68,-68,-68,-68,-68,-68,-68,-68,-68,-68,-68,-68,-68,-68,-68,-68,-68,-68,-68,-68,-68,-68,-68,-68,-68,-68,-68,-68,-68,-68,-68,-68,-68,-68,-68,-70,-70,-70,-68,-68,-68,-71,-71,-71,-71,-71,-71,-71,-71,-71,-71]} 1. e4 {[%emt 0:00:05]} e5 {[%emt 0:00:10]} 2. Nf3 {[%emt 0:00:08]} Nf6 {[%emt 0:00:06]} 3. d4 {[%emt 0:01:15]} d5 {[%emt 0:03:30]} 4. exd5 {[%emt 0:06:03]} exd4 {[%emt 0:00:50]} 5. Qxd4 {[%emt 0:00:30]} Qxd5 {[%emt 0:00:18]} 6. Bc4 {[%emt 0:00:53] C43: Petroff Defence: 3 d4.} Qxd4 {[%emt 0:01:23]} 7. Nxd4 {[%emt 0:00:03]} Bc5 {[%emt 0:00:14]} 8. Nb5 {[%emt 0:01:37]} Na6 {[%emt 0:02:47]} 9. Bf4 {[%emt 0:02:38]} O-O {[%emt 0:02:21]} 10. O-O {[%emt 0:00:24]} c6 $146 {[%emt 0:04:09]} ({Predecessor:} 10... Bf5 11. c3 Ne4 12. Nd4 Bxd4 13. cxd4 Nb4 14. Na3 Nd6 15. b3 Rad8 16. Rfd1 c6 {0-1 Eklund,R-Valli,F (2271) FIN Team Cup 2012 (4.4)}) 11. Nd6 {[%emt 0:04:56]} Nb4 {[%emt 0:03:09]} 12. Bb3 {[%emt 0:05:57]} Nbd5 {[%emt 0:00:42]} 13. Bg3 {[%emt 0:10:05]} Bxd6 {[%emt 0:05:06]} 14. Bxd6 {[%emt 0:00:13]} Rd8 {[%emt 0:00:05]} 15. Be5 {[%emt 0:04:21]} Bf5 {[%emt 0:02:14]} 16. Na3 {[%emt 0:03:01]} a5 {[%emt 0:15:36]} 17. c3 {[%emt 0:03:03]} a4 {[%emt 0:00:16]} 18. Bc2 {[%emt 0:00:27]} Bxc2 {[%emt 0:00:06]} 19. Nxc2 {[%emt 0:00:04]} Nd7 {[%emt 0:00:31]} 20. Bg3 {[%emt 0:01:49]} Nc5 {[%emt 0:04:21]} 21. Rad1 {[%emt 0:03:53]} Nf6 {[%emt 0:17:02]} 22. Bc7 {[%emt 0:05:36]} Re8 {[%emt 0:00:42]} 23. f3 {[%emt 0:03:06]} a3 {[%emt 0:12:34]} 24. Bd6 {[%emt 0:09:51]} b6 {[%emt 0:11:32]} 25. Bxc5 {[%emt 0:02:47]} bxc5 {[%emt 0:00:05]} 26. Nxa3 {[%emt 0:00:09]} Nd5 {[%emt 0:00:15]} 27. Rc1 {[%emt 0:05:44]} Nf4 {[%emt 0:01:42]} 28. Rce1 {[%emt 0:05:42]} Reb8 {[%emt 0:01:12]} 29. Nc4 {[%emt 0:03:34]} Rxa2 {[%emt 0:00:31]} 30. Ra1 {[%emt 0:01:46]} Rba8 {[%emt 0:05:04]} 31. Rxa2 {[%emt 0:00:04]} Rxa2 {[%emt 0:00:02]} 32. Rd1 {[%emt 0:00:55]} f6 {[%emt 0:01:16]} 33. Rd7 {[%emt 0:02:29]} h5 {[%emt 0:01:03]} 34. g3 {[%emt 0:01:58]} Nd5 {[%emt 0:00:23]} 35. h4 {[%emt 0:01:58]} Ra4 {[%emt 0:00:14]} 36. Nd6 {[%emt 0:00:49]} Ra1+ {[%emt 0:00:17]} 37. Kf2 {[%emt 0:02:12]} Ra2 {[%emt 0:00:31]} 38. Rb7 {[%emt 0:01:38]} Nxc3 {[%emt 0:00:15]} 39. Ke1 {[%emt 0:03:01]} Nd5 {[%emt 0:03:39]} 40. Nf5 {[%emt 0:00:05]} Nb4 {[%emt 0:00:07]} 41. Rxg7+ {[%emt 0:00:48]} (41. Nxg7 Rxb2 42. Rd7 Nd3+ 43. Kd1 Ne5) 41... Kf8 {[%emt 0:00:05]} 42. g4 {[%emt 0:01:10]} Rxb2 {[%emt 0:00:52]} 43. gxh5 $2 {[%emt 0:00:17][%mdl 8192] [#]} (43. Rc7 $11) 43... Nc2+ $1 $19 {[%emt 0:00:03]} 44. Kd1 {[%emt 0:01:48]} Ne3+ $1 {[%emt 0:01:43]} 45. Kc1 {[%emt 0:00:01]} Nxf5 {[%emt 0:00:22]} 46. Rg6 {[%emt 0:00:21] [#]} Nxh4 $2 {[%emt 0:00:07]} (46... Rb7 $1 $19 47. Rxf6+ Rf7 48. Rxc6 Nd4 (48... Nxh4 49. Rxc5 Rxf3 50. Kc2 $15)) 47. Rxf6+ $15 {[%emt 0:00:06]} (47. Kxb2 $2 Nxg6 (47... Nxf3 48. Rxf6+ Kg8 49. Rxf3 Kg7 50. Kc3 Kh6 51. Rh3 Kh7 52. h6) 48. Kc3 Ne5 $19) 47... Kg7 {[%emt 0:00:35]} 48. Rxc6 {[%emt 0:00:05]} Rb5 {[%emt 0:00:08]} 49. f4 {[%emt 0:01:43]} Nf5 {[%emt 0:00:38]} 50. Kd2 {[%emt 0:00:11]} Nd4 {[%emt 0:00:55]} 51. h6+ $2 {[%emt 0:01:30]} ({White should try} 51. Rc8 $15) 51... Kh7 $19 {[%emt 0:00:26]} 52. Rd6 $2 {[%emt 0:00:03]} (52. Rc8 {is a better chance.}) 52... Rb3 $19 {[%emt 0:01:19]} 53. Rd5 {[%emt 0:00:53]} Rh3 {[%emt 0:00:26]} ({Less strong is} 53... Kxh6 54. Rxc5 Kg6 55. Ra5 $15) 54. Kd1 {[%emt 0:01:03]} Rxh6 {[%emt 0:00:38]} (54... Rd3+ $142 55. Kc1 Ne2+ (55... Kxh6 $2 56. Kb2 $19) 56. Kc2 Rxd5 57. f5 c4 (57... Kxh6 {gets mated.} 58. Kb3 Rxf5 59. Kc4 Kg5 60. Kd3 Kf4 61. Kc4 Nd4 62. Kd3 Ke5 63. Ke3 Rf1 64. Kd3 Rf2 65. Ke3 Rc2 66. Kd3 c4+ 67. Ke3 Re2#) (57... Nd4+ 58. Kd3 Rxf5 59. Ke4 Kxh6 60. Kd3 Kg5 61. Ke3 Kf6 62. Ke4 Ke6 63. Kd3 Ke5 64. Ke3 Rf1 65. Kd3 Rf2 66. Ke3 Rc2 67. Kd3 c4+ 68. Ke3 Re2#) 58. f6 Kxh6 (58... Nd4+ $2 59. Kc3 $19) 59. f7 Kg7 60. Kb2 Kxf7 61. Kc2 c3 62. Kb3 Rd2 63. Ka4 c2 64. Kb4 c1=Q (64... c1=B 65. Kb5 Ke6 66. Kc6 Rc2+ 67. Kb6 Kd5 68. Kb5 Rc6 69. Ka4 Kc4 70. Ka5 Bd2+ 71. Ka4 Ra6#) 65. Kb5 Rb2+ 66. Ka6 Qa1#) 55. Ke1 {[%emt 0:00:34]} Nc2+ $2 {[%emt 0:01:00]} ({Better is} 55... Nb3 $19 56. Kd1 Rh2) 56. Kd2 $1 $15 {[%emt 0:00:05]} Rh2+ {[%emt 0:00:04]} 57. Kc3 {[%emt 0:00:36]} Nd4 {[%emt 0:01:47]} 58. Rxc5 {[%emt 0:00:12]} Ne2+ {[%emt 0:00:03]} 59. Kd3 {[%emt 0:00:18]} Nxf4+ {[%emt 0:00:04]} 60. Ke4 {[%emt 0:00:13]} Ng6 {[%emt 0:00:16]} 61. Rc6 {[%emt 0:00:49]} Rh4+ {[%emt 0:00:11]} (61... Re2+ 62. Kf3 Re5 63. Rd6 $17) 62. Ke3 {[%emt 0:00:11]} Kg7 {[%emt 0:00:12]} 63. Ra6 {[%emt 0:00:10]} (63. Rc7+ Kf6 $17) 63... Kh6 {[%emt 0:00:38]} 64. Ra5 {[%emt 0:00:10]} Ne7 {[%emt 0:00:41]} 65. Re5 {[%emt 0:00:25]} Ng8 {[%emt 0:00:14]} 66. Re8 {[%emt 0:00:15]} Rg4 {[%emt 0:00:09]} 67. Re6+ {[%emt 0:00:16]} Kg5 {[%emt 0:00:08]} 68. Re5+ {[%emt 0:00:18]} Kf6 {[%emt 0:00:04]} 69. Re4 {[%emt 0:00:15]} Rg3+ {[%emt 0:00:12]} 70. Kf4 {[%emt 0:00:16]} Ra3 {[%emt 0:00:08]} 71. Rb4 {[%emt 0:00:05]} Ra6 {[%emt 0:00:07]} 72. Rb8 {[%emt 0:00:45]} Ra4+ {[%emt 0:00:06]} 73. Ke3 {[%emt 0:00:03]} Ne7 {[%emt 0:00:03]} 74. Rf8+ {[%emt 0:00:17]} Ke5 {[%emt 0:00:08]} 75. Re8 {[%emt 0:00:16]} Ra3+ {[%emt 0:00:04]} 76. Kd2 {[%emt 0:00:02]} Kd6 {[%emt 0:00:08]} 77. Rd8+ {[%emt 0:00:17]} Kc5 {[%emt 0:00:06]} 78. Ke2 {[%emt 0:01:07]} Nd5 {[%emt 0:00:09]} 79. Rh8 {[%emt 0:00:49]} Nf4+ {[%emt 0:00:15]} 80. Kd2 {[%emt 0:00:34]} Kd4 {[%emt 0:00:07]} 81. Rd8+ {[%emt 0:00:03]} Nd5 {[%emt 0:00:14]} 82. Ke2 {[%emt 0:00:05]} Ke5 {[%emt 0:00:37]} 1/2-1/2